Workbook

Sheet Start
B1: Über diese Vorlage
B2: Behalten Sie mit dieser Vorlage den Überblick über Ihre monatlichen Ausgaben und Ersparnisse.
B3: Geben Sie die Details zu den Ausgaben in die Tabelle und das monatliche Einkommen ein, um die Ersparnisse zu berechnen.
B4: Das Ringdiagramm mit den Ausgaben und Ersparnissen wird automatisch aktualisiert.
B5: Anmerkung:
B6: Zusätzliche Anweisungen finden Sie in Spalte A auf dem Arbeitsblatt BUDGET-RAD. Diese Texte wurden absichtlich ausgeblendet. Um die Texte zu entfernen, wählen Sie Spalte A und dann ENTF aus. Um die Texte einzublenden, wählen Sie Spalte A aus, und ändern Sie die Schriftfarbe.
B7: Wenn Sie mehr zur Tabelle erfahren möchten, drücken Sie die UMSCHALTTASTE und dann innerhalb der Tabelle F10. Wählen Sie die Option „TABELLE“ und dann „ALTERNATIVTEXT“ aus.

Sheet Budget-Rad
B1: Budget-Rad | D1: Füllen Sie die Tabelle in dieser Vorlage aus. Im Diagramm werden Ihre monatlichen Ausgaben gegenüber Ihren monatlichen Einkünften grafisch dargestellt. Es berechnet auch die Prozentsätze, um Ihnen zu zeigen, wie viel Sie sparen werden bzw. gespart haben.
B2: Monatlich Einkünfte | G2: Ersparnisse Betrag
B3: 5,738 € | G3: =Spareinlagen -> 2,777 €
G4: Berechneter Wert automatisch
B6: Ausgaben | C6: Kategorie | D6: Betrag | E6: Häufigkeit | F6: Monatlicher Betrag | G6: % des Gesamtwerts
B7: Versicherungen | C7: Verkehrsmittel | D7: 300 € | E7: Alle 6 Monate | F7: =IF(Ausgaben[[#This Row],[Betrag]]>0,IF(Ausgaben[[#This Row],[Häufigkeit]]<>"",ROUND(IF(Ausgaben[[#This Row],[Häufigkeit]]="Monatlich",Ausgaben[Betrag],IF(Ausgaben[[#This Row],[Häufigkeit]]="Wöchentlich",Ausgaben[[#This Row],[Betrag]]*4,IF(Ausgaben[[#This Row],[Häufigkeit]]="Vierteljährlich",Ausgaben[[#This Row],[Betrag]]/3,IF(Ausgaben[[#This Row],[Häufigkeit]]="Alle 6 Monate",Ausgaben[[#This Row],[Betrag]]/6,IF(Ausgaben[[#This Row],[Häufigkeit]]="Jährlich",Ausgaben[[#This Row],[Betrag]]/12,IF(Ausgaben[[#This Row],[Häufigkeit]]="Jede zweite Woche",Ausgaben[[#This Row],[Betrag]]*2,IF(Ausgaben[[#This Row],[Häufigkeit]]="Jeden zweiten Monat",Ausgaben[[#This Row],[Betrag]]/2,""))))))),0),""),"") -> 50 € | G7: =IF(Ausgaben[[#This Row],[Monatlicher Betrag]]<>"",Ausgaben[[#This Row],[Monatlicher Betrag]]/Einkünfte,"") -> 1%
B8: Benzin | C8: Verkehrsmittel | D8: 25 € | E8: Wöchentlich | F8: =IF(Ausgaben[[#This Row],[Betrag]]>0,IF(Ausgaben[[#This Row],[Häufigkeit]]<>"",ROUND(IF(Ausgaben[[#This Row],[Häufigkeit]]="Monatlich",Ausgaben[Betrag],IF(Ausgaben[[#This Row],[Häufigkeit]]="Wöchentlich",Ausgaben[[#This Row],[Betrag]]*4,IF(Ausgaben[[#This Row],[Häufigkeit]]="Vierteljährlich",Ausgaben[[#This Row],[Betrag]]/3,IF(Ausgaben[[#This Row],[Häufigkeit]]="Alle 6 Monate",Ausgaben[[#This Row],[Betrag]]/6,IF(Ausgaben[[#This Row],[Häufigkeit]]="Jährlich",Ausgaben[[#This Row],[Betrag]]/12,IF(Ausgaben[[#This Row],[Häufigkeit]]="Jede zweite Woche",Ausgaben[[#This Row],[Betrag]]*2,IF(Ausgaben[[#This Row],[Häufigkeit]]="Jeden zweiten Monat",Ausgaben[[#This Row],[Betrag]]/2,""))))))),0),""),"") -> 100 € | G8: =IF(Ausgaben[[#This Row],[Monatlicher Betrag]]<>"",Ausgaben[[#This Row],[Monatlicher Betrag]]/Einkünfte,"") -> 2%
B9: Rate für Kfz | C9: Verkehrsmittel | D9: 200 € | E9: Monatlich | F9: =IF(Ausgaben[[#This Row],[Betrag]]>0,IF(Ausgaben[[#This Row],[Häufigkeit]]<>"",ROUND(IF(Ausgaben[[#This Row],[Häufigkeit]]="Monatlich",Ausgaben[Betrag],IF(Ausgaben[[#This Row],[Häufigkeit]]="Wöchentlich",Ausgaben[[#This Row],[Betrag]]*4,IF(Ausgaben[[#This Row],[Häufigkeit]]="Vierteljährlich",Ausgaben[[#This Row],[Betrag]]/3,IF(Ausgaben[[#This Row],[Häufigkeit]]="Alle 6 Monate",Ausgaben[[#This Row],[Betrag]]/6,IF(Ausgaben[[#This Row],[Häufigkeit]]="Jährlich",Ausgaben[[#This Row],[Betrag]]/12,IF(Ausgaben[[#This Row],[Häufigkeit]]="Jede zweite Woche",Ausgaben[[#This Row],[Betrag]]*2,IF(Ausgaben[[#This Row],[Häufigkeit]]="Jeden zweiten Monat",Ausgaben[[#This Row],[Betrag]]/2,""))))))),0),""),"") -> 200 € | G9: =IF(Ausgaben[[#This Row],[Monatlicher Betrag]]<>"",Ausgaben[[#This Row],[Monatlicher Betrag]]/Einkünfte,"") -> 3%
B10: Hypothek | C10: Wohnen | D10: 1,600 € | E10: Monatlich | F10: =IF(Ausgaben[[#This Row],[Betrag]]>0,IF(Ausgaben[[#This Row],[Häufigkeit]]<>"",ROUND(IF(Ausgaben[[#This Row],[Häufigkeit]]="Monatlich",Ausgaben[Betrag],IF(Ausgaben[[#This Row],[Häufigkeit]]="Wöchentlich",Ausgaben[[#This Row],[Betrag]]*4,IF(Ausgaben[[#This Row],[Häufigkeit]]="Vierteljährlich",Ausgaben[[#This Row],[Betrag]]/3,IF(Ausgaben[[#This Row],[Häufigkeit]]="Alle 6 Monate",Ausgaben[[#This Row],[Betrag]]/6,IF(Ausgaben[[#This Row],[Häufigkeit]]="Jährlich",Ausgaben[[#This Row],[Betrag]]/12,IF(Ausgaben[[#This Row],[Häufigkeit]]="Jede zweite Woche",Ausgaben[[#This Row],[Betrag]]*2,IF(Ausgaben[[#This Row],[Häufigkeit]]="Jeden zweiten Monat",Ausgaben[[#This Row],[Betrag]]/2,""))))))),0),""),"") -> 1,600 € | G10: =IF(Ausgaben[[#This Row],[Monatlicher Betrag]]<>"",Ausgaben[[#This Row],[Monatlicher Betrag]]/Einkünfte,"") -> 28%
B11: Kabelfernsehen | C11: Wohnen | D11: 60 € | E11: Monatlich | F11: =IF(Ausgaben[[#This Row],[Betrag]]>0,IF(Ausgaben[[#This Row],[Häufigkeit]]<>"",ROUND(IF(Ausgaben[[#This Row],[Häufigkeit]]="Monatlich",Ausgaben[Betrag],IF(Ausgaben[[#This Row],[Häufigkeit]]="Wöchentlich",Ausgaben[[#This Row],[Betrag]]*4,IF(Ausgaben[[#This Row],[Häufigkeit]]="Vierteljährlich",Ausgaben[[#This Row],[Betrag]]/3,IF(Ausgaben[[#This Row],[Häufigkeit]]="Alle 6 Monate",Ausgaben[[#This Row],[Betrag]]/6,IF(Ausgaben[[#This Row],[Häufigkeit]]="Jährlich",Ausgaben[[#This Row],[Betrag]]/12,IF(Ausgaben[[#This Row],[Häufigkeit]]="Jede zweite Woche",Ausgaben[[#This Row],[Betrag]]*2,IF(Ausgaben[[#This Row],[Häufigkeit]]="Jeden zweiten Monat",Ausgaben[[#This Row],[Betrag]]/2,""))))))),0),""),"") -> 60 € | G11: =IF(Ausgaben[[#This Row],[Monatlicher Betrag]]<>"",Ausgaben[[#This Row],[Monatlicher Betrag]]/Einkünfte,"") -> 1%
B12: Filmabend | C12: Unterhaltung | D12: 70 € | E12: Monatlich | F12: =IF(Ausgaben[[#This Row],[Betrag]]>0,IF(Ausgaben[[#This Row],[Häufigkeit]]<>"",ROUND(IF(Ausgaben[[#This Row],[Häufigkeit]]="Monatlich",Ausgaben[Betrag],IF(Ausgaben[[#This Row],[Häufigkeit]]="Wöchentlich",Ausgaben[[#This Row],[Betrag]]*4,IF(Ausgaben[[#This Row],[Häufigkeit]]="Vierteljährlich",Ausgaben[[#This Row],[Betrag]]/3,IF(Ausgaben[[#This Row],[Häufigkeit]]="Alle 6 Monate",Ausgaben[[#This Row],[Betrag]]/6,IF(Ausgaben[[#This Row],[Häufigkeit]]="Jährlich",Ausgaben[[#This Row],[Betrag]]/12,IF(Ausgaben[[#This Row],[Häufigkeit]]="Jede zweite Woche",Ausgaben[[#This Row],[Betrag]]*2,IF(Ausgaben[[#This Row],[Häufigkeit]]="Jeden zweiten Monat",Ausgaben[[#This Row],[Betrag]]/2,""))))))),0),""),"") -> 70 € | G12: =IF(Ausgaben[[#This Row],[Monatlicher Betrag]]<>"",Ausgaben[[#This Row],[Monatlicher Betrag]]/Einkünfte,"") -> 1%
B13: Turnschuhe | C13: Sonstiges | D13: 300 € | E13: Jährlich | F13: =IF(Ausgaben[[#This Row],[Betrag]]>0,IF(Ausgaben[[#This Row],[Häufigkeit]]<>"",ROUND(IF(Ausgaben[[#This Row],[Häufigkeit]]="Monatlich",Ausgaben[Betrag],IF(Ausgaben[[#This Row],[Häufigkeit]]="Wöchentlich",Ausgaben[[#This Row],[Betrag]]*4,IF(Ausgaben[[#This Row],[Häufigkeit]]="Vierteljährlich",Ausgaben[[#This Row],[Betrag]]/3,IF(Ausgaben[[#This Row],[Häufigkeit]]="Alle 6 Monate",Ausgaben[[#This Row],[Betrag]]/6,IF(Ausgaben[[#This Row],[Häufigkeit]]="Jährlich",Ausgaben[[#This Row],[Betrag]]/12,IF(Ausgaben[[#This Row],[Häufigkeit]]="Jede zweite Woche",Ausgaben[[#This Row],[Betrag]]*2,IF(Ausgaben[[#This Row],[Häufigkeit]]="Jeden zweiten Monat",Ausgaben[[#This Row],[Betrag]]/2,""))))))),0),""),"") -> 25 € | G13: =IF(Ausgaben[[#This Row],[Monatlicher Betrag]]<>"",Ausgaben[[#This Row],[Monatlicher Betrag]]/Einkünfte,"") -> 0%
B14: Hundefutter | C14: Sonstiges | D14: 60 € | E14: Monatlich | F14: =IF(Ausgaben[[#This Row],[Betrag]]>0,IF(Ausgaben[[#This Row],[Häufigkeit]]<>"",ROUND(IF(Ausgaben[[#This Row],[Häufigkeit]]="Monatlich",Ausgaben[Betrag],IF(Ausgaben[[#This Row],[Häufigkeit]]="Wöchentlich",Ausgaben[[#This Row],[Betrag]]*4,IF(Ausgaben[[#This Row],[Häufigkeit]]="Vierteljährlich",Ausgaben[[#This Row],[Betrag]]/3,IF(Ausgaben[[#This Row],[Häufigkeit]]="Alle 6 Monate",Ausgaben[[#This Row],[Betrag]]/6,IF(Ausgaben[[#This Row],[Häufigkeit]]="Jährlich",Ausgaben[[#This Row],[Betrag]]/12,IF(Ausgaben[[#This Row],[Häufigkeit]]="Jede zweite Woche",Ausgaben[[#This Row],[Betrag]]*2,IF(Ausgaben[[#This Row],[Häufigkeit]]="Jeden zweiten Monat",Ausgaben[[#This Row],[Betrag]]/2,""))))))),0),""),"") -> 60 € | G14: =IF(Ausgaben[[#This Row],[Monatlicher Betrag]]<>"",Ausgaben[[#This Row],[Monatlicher Betrag]]/Einkünfte,"") -> 1%
B15: Haustierversicherung | C15: Sonstiges | D15: 70 € | E15: Jährlich | F15: =IF(Ausgaben[[#This Row],[Betrag]]>0,IF(Ausgaben[[#This Row],[Häufigkeit]]<>"",ROUND(IF(Ausgaben[[#This Row],[Häufigkeit]]="Monatlich",Ausgaben[Betrag],IF(Ausgaben[[#This Row],[Häufigkeit]]="Wöchentlich",Ausgaben[[#This Row],[Betrag]]*4,IF(Ausgaben[[#This Row],[Häufigkeit]]="Vierteljährlich",Ausgaben[[#This Row],[Betrag]]/3,IF(Ausgaben[[#This Row],[Häufigkeit]]="Alle 6 Monate",Ausgaben[[#This Row],[Betrag]]/6,IF(Ausgaben[[#This Row],[Häufigkeit]]="Jährlich",Ausgaben[[#This Row],[Betrag]]/12,IF(Ausgaben[[#This Row],[Häufigkeit]]="Jede zweite Woche",Ausgaben[[#This Row],[Betrag]]*2,IF(Ausgaben[[#This Row],[Häufigkeit]]="Jeden zweiten Monat",Ausgaben[[#This Row],[Betrag]]/2,""))))))),0),""),"") -> 6 € | G15: =IF(Ausgaben[[#This Row],[Monatlicher Betrag]]<>"",Ausgaben[[#This Row],[Monatlicher Betrag]]/Einkünfte,"") -> 0%
B16: Lebensmittel | C16: Nahrungsmittel | D16: 100 € | E16: Wöchentlich | F16: =IF(Ausgaben[[#This Row],[Betrag]]>0,IF(Ausgaben[[#This Row],[Häufigkeit]]<>"",ROUND(IF(Ausgaben[[#This Row],[Häufigkeit]]="Monatlich",Ausgaben[Betrag],IF(Ausgaben[[#This Row],[Häufigkeit]]="Wöchentlich",Ausgaben[[#This Row],[Betrag]]*4,IF(Ausgaben[[#This Row],[Häufigkeit]]="Vierteljährlich",Ausgaben[[#This Row],[Betrag]]/3,IF(Ausgaben[[#This Row],[Häufigkeit]]="Alle 6 Monate",Ausgaben[[#This Row],[Betrag]]/6,IF(Ausgaben[[#This Row],[Häufigkeit]]="Jährlich",Ausgaben[[#This Row],[Betrag]]/12,IF(Ausgaben[[#This Row],[Häufigkeit]]="Jede zweite Woche",Ausgaben[[#This Row],[Betrag]]*2,IF(Ausgaben[[#This Row],[Häufigkeit]]="Jeden zweiten Monat",Ausgaben[[#This Row],[Betrag]]/2,""))))))),0),""),"") -> 400 € | G16: =IF(Ausgaben[[#This Row],[Monatlicher Betrag]]<>"",Ausgaben[[#This Row],[Monatlicher Betrag]]/Einkünfte,"") -> 7%
B17: Kaffee | C17: Nahrungsmittel | D17: 25 € | E17: Wöchentlich | F17: =IF(Ausgaben[[#This Row],[Betrag]]>0,IF(Ausgaben[[#This Row],[Häufigkeit]]<>"",ROUND(IF(Ausgaben[[#This Row],[Häufigkeit]]="Monatlich",Ausgaben[Betrag],IF(Ausgaben[[#This Row],[Häufigkeit]]="Wöchentlich",Ausgaben[[#This Row],[Betrag]]*4,IF(Ausgaben[[#This Row],[Häufigkeit]]="Vierteljährlich",Ausgaben[[#This Row],[Betrag]]/3,IF(Ausgaben[[#This Row],[Häufigkeit]]="Alle 6 Monate",Ausgaben[[#This Row],[Betrag]]/6,IF(Ausgaben[[#This Row],[Häufigkeit]]="Jährlich",Ausgaben[[#This Row],[Betrag]]/12,IF(Ausgaben[[#This Row],[Häufigkeit]]="Jede zweite Woche",Ausgaben[[#This Row],[Betrag]]*2,IF(Ausgaben[[#This Row],[Häufigkeit]]="Jeden zweiten Monat",Ausgaben[[#This Row],[Betrag]]/2,""))))))),0),""),"") -> 100 € | G17: =IF(Ausgaben[[#This Row],[Monatlicher Betrag]]<>"",Ausgaben[[#This Row],[Monatlicher Betrag]]/Einkünfte,"") -> 2%
B18: Kletterausrüstung | C18: Unterhaltung | D18: 170 € | E18: Jährlich | F18: =IF(Ausgaben[[#This Row],[Betrag]]>0,IF(Ausgaben[[#This Row],[Häufigkeit]]<>"",ROUND(IF(Ausgaben[[#This Row],[Häufigkeit]]="Monatlich",Ausgaben[Betrag],IF(Ausgaben[[#This Row],[Häufigkeit]]="Wöchentlich",Ausgaben[[#This Row],[Betrag]]*4,IF(Ausgaben[[#This Row],[Häufigkeit]]="Vierteljährlich",Ausgaben[[#This Row],[Betrag]]/3,IF(Ausgaben[[#This Row],[Häufigkeit]]="Alle 6 Monate",Ausgaben[[#This Row],[Betrag]]/6,IF(Ausgaben[[#This Row],[Häufigkeit]]="Jährlich",Ausgaben[[#This Row],[Betrag]]/12,IF(Ausgaben[[#This Row],[Häufigkeit]]="Jede zweite Woche",Ausgaben[[#This Row],[Betrag]]*2,IF(Ausgaben[[#This Row],[Häufigkeit]]="Jeden zweiten Monat",Ausgaben[[#This Row],[Betrag]]/2,""))))))),0),""),"") -> 14 € | G18: =IF(Ausgaben[[#This Row],[Monatlicher Betrag]]<>"",Ausgaben[[#This Row],[Monatlicher Betrag]]/Einkünfte,"") -> 0%
B19: Mitgliedschaft Fitnesscenter | C19: Sonstiges | D19: 60 € | E19: Monatlich | F19: =IF(Ausgaben[[#This Row],[Betrag]]>0,IF(Ausgaben[[#This Row],[Häufigkeit]]<>"",ROUND(IF(Ausgaben[[#This Row],[Häufigkeit]]="Monatlich",Ausgaben[Betrag],IF(Ausgaben[[#This Row],[Häufigkeit]]="Wöchentlich",Ausgaben[[#This Row],[Betrag]]*4,IF(Ausgaben[[#This Row],[Häufigkeit]]="Vierteljährlich",Ausgaben[[#This Row],[Betrag]]/3,IF(Ausgaben[[#This Row],[Häufigkeit]]="Alle 6 Monate",Ausgaben[[#This Row],[Betrag]]/6,IF(Ausgaben[[#This Row],[Häufigkeit]]="Jährlich",Ausgaben[[#This Row],[Betrag]]/12,IF(Ausgaben[[#This Row],[Häufigkeit]]="Jede zweite Woche",Ausgaben[[#This Row],[Betrag]]*2,IF(Ausgaben[[#This Row],[Häufigkeit]]="Jeden zweiten Monat",Ausgaben[[#This Row],[Betrag]]/2,""))))))),0),""),"") -> 60 € | G19: =IF(Ausgaben[[#This Row],[Monatlicher Betrag]]<>"",Ausgaben[[#This Row],[Monatlicher Betrag]]/Einkünfte,"") -> 1%
B20: Kopfhörer | C20: Unterhaltung | D20: 50 € | E20: Jährlich | F20: =IF(Ausgaben[[#This Row],[Betrag]]>0,IF(Ausgaben[[#This Row],[Häufigkeit]]<>"",ROUND(IF(Ausgaben[[#This Row],[Häufigkeit]]="Monatlich",Ausgaben[Betrag],IF(Ausgaben[[#This Row],[Häufigkeit]]="Wöchentlich",Ausgaben[[#This Row],[Betrag]]*4,IF(Ausgaben[[#This Row],[Häufigkeit]]="Vierteljährlich",Ausgaben[[#This Row],[Betrag]]/3,IF(Ausgaben[[#This Row],[Häufigkeit]]="Alle 6 Monate",Ausgaben[[#This Row],[Betrag]]/6,IF(Ausgaben[[#This Row],[Häufigkeit]]="Jährlich",Ausgaben[[#This Row],[Betrag]]/12,IF(Ausgaben[[#This Row],[Häufigkeit]]="Jede zweite Woche",Ausgaben[[#This Row],[Betrag]]*2,IF(Ausgaben[[#This Row],[Häufigkeit]]="Jeden zweiten Monat",Ausgaben[[#This Row],[Betrag]]/2,""))))))),0),""),"") -> 4 € | G20: =IF(Ausgaben[[#This Row],[Monatlicher Betrag]]<>"",Ausgaben[[#This Row],[Monatlicher Betrag]]/Einkünfte,"") -> 0%
B21: Haarschnitt | C21: Sonstiges | D21: 70 € | E21: Monatlich | F21: =IF(Ausgaben[[#This Row],[Betrag]]>0,IF(Ausgaben[[#This Row],[Häufigkeit]]<>"",ROUND(IF(Ausgaben[[#This Row],[Häufigkeit]]="Monatlich",Ausgaben[Betrag],IF(Ausgaben[[#This Row],[Häufigkeit]]="Wöchentlich",Ausgaben[[#This Row],[Betrag]]*4,IF(Ausgaben[[#This Row],[Häufigkeit]]="Vierteljährlich",Ausgaben[[#This Row],[Betrag]]/3,IF(Ausgaben[[#This Row],[Häufigkeit]]="Alle 6 Monate",Ausgaben[[#This Row],[Betrag]]/6,IF(Ausgaben[[#This Row],[Häufigkeit]]="Jährlich",Ausgaben[[#This Row],[Betrag]]/12,IF(Ausgaben[[#This Row],[Häufigkeit]]="Jede zweite Woche",Ausgaben[[#This Row],[Betrag]]*2,IF(Ausgaben[[#This Row],[Häufigkeit]]="Jeden zweiten Monat",Ausgaben[[#This Row],[Betrag]]/2,""))))))),0),""),"") -> 70 € | G21: =IF(Ausgaben[[#This Row],[Monatlicher Betrag]]<>"",Ausgaben[[#This Row],[Monatlicher Betrag]]/Einkünfte,"") -> 1%
B22: Videospiele | C22: Unterhaltung | D22: 100 € | E22: Monatlich | F22: =IF(Ausgaben[[#This Row],[Betrag]]>0,IF(Ausgaben[[#This Row],[Häufigkeit]]<>"",ROUND(IF(Ausgaben[[#This Row],[Häufigkeit]]="Monatlich",Ausgaben[Betrag],IF(Ausgaben[[#This Row],[Häufigkeit]]="Wöchentlich",Ausgaben[[#This Row],[Betrag]]*4,IF(Ausgaben[[#This Row],[Häufigkeit]]="Vierteljährlich",Ausgaben[[#This Row],[Betrag]]/3,IF(Ausgaben[[#This Row],[Häufigkeit]]="Alle 6 Monate",Ausgaben[[#This Row],[Betrag]]/6,IF(Ausgaben[[#This Row],[Häufigkeit]]="Jährlich",Ausgaben[[#This Row],[Betrag]]/12,IF(Ausgaben[[#This Row],[Häufigkeit]]="Jede zweite Woche",Ausgaben[[#This Row],[Betrag]]*2,IF(Ausgaben[[#This Row],[Häufigkeit]]="Jeden zweiten Monat",Ausgaben[[#This Row],[Betrag]]/2,""))))))),0),""),"") -> 100 € | G22: =IF(Ausgaben[[#This Row],[Monatlicher Betrag]]<>"",Ausgaben[[#This Row],[Monatlicher Betrag]]/Einkünfte,"") -> 2%
B23: Kleidung | C23: Sonstiges | D23: 500 € | E23: Jährlich | F23: =IF(Ausgaben[[#This Row],[Betrag]]>0,IF(Ausgaben[[#This Row],[Häufigkeit]]<>"",ROUND(IF(Ausgaben[[#This Row],[Häufigkeit]]="Monatlich",Ausgaben[Betrag],IF(Ausgaben[[#This Row],[Häufigkeit]]="Wöchentlich",Ausgaben[[#This Row],[Betrag]]*4,IF(Ausgaben[[#This Row],[Häufigkeit]]="Vierteljährlich",Ausgaben[[#This Row],[Betrag]]/3,IF(Ausgaben[[#This Row],[Häufigkeit]]="Alle 6 Monate",Ausgaben[[#This Row],[Betrag]]/6,IF(Ausgaben[[#This Row],[Häufigkeit]]="Jährlich",Ausgaben[[#This Row],[Betrag]]/12,IF(Ausgaben[[#This Row],[Häufigkeit]]="Jede zweite Woche",Ausgaben[[#This Row],[Betrag]]*2,IF(Ausgaben[[#This Row],[Häufigkeit]]="Jeden zweiten Monat",Ausgaben[[#This Row],[Betrag]]/2,""))))))),0),""),"") -> 42 € | G23: =IF(Ausgaben[[#This Row],[Monatlicher Betrag]]<>"",Ausgaben[[#This Row],[Monatlicher Betrag]]/Einkünfte,"") -> 1%

Sheet Daten (hidden)
A1: Dieses Blatt sollte nicht angezeigt werden.
A2: Kategorien | B2: Betrag pro Kategorie | C2: Anteil Gesamtsumme in % | D2: Häufigkeit | E2: Ersparnisse
A3: Wohnen | B3: =IF(SUMIF(Ausgaben[Kategorie],"Wohnen",Ausgaben[Monatlicher Betrag])>0,SUMIF(Ausgaben[Kategorie],"Wohnen",Ausgaben[Monatlicher Betrag]),NA()) -> 1,660 € | C3: =IF(B3>0,B3/Einkünfte,"") -> 29% | D3: Wöchentlich | E3: =Einkünfte-SUM(Ausgaben[Monatlicher Betrag]) -> 2,777 €
A4: Unterhaltung | B4: =IF(SUMIF(Ausgaben[Kategorie],"Unterhaltung",Ausgaben[Monatlicher Betrag])>0,SUMIF(Ausgaben[Kategorie],"Unterhaltung",Ausgaben[Monatlicher Betrag]),NA()) -> 188 € | C4: 3% | D4: Monatlich
A5: Verkehrsmittel | B5: =IF(SUMIF(Ausgaben[Kategorie],"Verkehrsmittel",Ausgaben[Monatlicher Betrag])>0,SUMIF(Ausgaben[Kategorie],"Verkehrsmittel",Ausgaben[Monatlicher Betrag]),NA()) -> 350 € | C5: 6% | D5: Vierteljährlich
A6: Nahrungsmittel | B6: =IF(SUMIF(Ausgaben[Kategorie],"Nahrungsmittel",Ausgaben[Monatlicher Betrag])>0,SUMIF(Ausgaben[Kategorie],"Nahrungsmittel",Ausgaben[Monatlicher Betrag]),NA()) -> 500 € | C6: 9% | D6: Alle 6 Monate
A7: Sonstiges | B7: =IF(SUMIF(Ausgaben[Kategorie],"Sonstiges",Ausgaben[Monatlicher Betrag])>0,SUMIF(Ausgaben[Kategorie],"Sonstiges",Ausgaben[Monatlicher Betrag]),NA()) -> 263 € | C7: 5% | D7: Jährlich
A8: Ersparnisse | B8: =IF(E3>0,E3,NA()) -> 2,777 € | C8: 48% | D8: Jede zweite Woche
D9: Jeden zweiten Monat
B10: ERGEBNIS: | C10: =SUM(C3:C8) -> 100%
